bitfinex/quotes_SOLUSD_20240620
["timestamp","ask_amount","ask_price","bid_price","bid_amount"]
[1718865809365,14.5985,136.27,136.22,7.3409]
[1718865810162,7.26,136.26,136.22,7.3409]
[1718865810362,14.5989,136.26,136.22,7.3409]
[1718865810678,7.26,136.26,136.22,7.3409]
[1718865811472,7.3387,136.27,136.22,7.3409]
[1718865812552,47.3844,136.29,136.2,0.17]
[1718865812753,0.17,136.28,136.2,7.43]
[1718865813678,7.3385,136.27,136.22,7.3407]
[1718865814871,0.17,136.28,136.11,263.6]
[1718865815080,14.6,136.24,136.19,7.3424]
[1718865815257,7.26,136.23,136.19,7.3424]
[1718865815451,7.26,136.23,136.2,7.342]
[1718865816065,7.26,136.24,136.2,7.342]
[1718865817081,7.26,136.21,136.19,7.3426]
[1718865817370,7.26,136.21,136.18,7.3429]
[1718865817949,7.26,136.21,136.19,7.3426]
[1718865818569,7.3405,136.23,136.18,7.3431]
[1718865818570,7.26,136.2,136.18,7.3431]
[1718865819257,7.26,136.21,136.18,7.3431]
[1718865819974,7.26,136.21,136.17,7.3435]
[1718865820159,7.26,136.2,136.17,7.3435]
[1718865820581,7.26,136.2,136.18,7.3431]
[1718865820951,7.26,136.2,136.17,7.3435]
[1718865821957,7.3411,136.22,136.17,7.3435]
[1718865822171,7.26,136.2,136.17,7.3435]
[1718865822567,22.4349,136.24,136.19,7.3426]
[1718865822779,7.26,136.21,136.19,7.3426]
[1718865823880,7.26,136.22,136.19,7.3426]
[1718865824271,7.26,136.21,136.18,7.343]
[1718865825180,7.26,136.21,136.17,7.3435]
[1718865826181,7.26,136.2,136.17,7.3435]
[1718865826563,6.36,136.2,136.17,7.3435]
[1718865827075,13.7022,136.2,136.15,14.6046]
[1718865827279,7.26,136.18,136.14,7.3453]
[1718865827572,7.26,136.17,136.15,7.3447]
[1718865828161,7.26,136.18,136.15,7.3447]
[1718865828979,7.26,136.18,136.14,7.3451]
[1718865829180,14.6037,136.18,136.13,7.3457]
[1718865829483,7.3428,136.19,136.14,7.3451]
[1718865829677,7.26,136.17,136.13,7.3456]
[1718865830280,7.3429,136.19,136.14,7.3452]
[1718865830482,7.26,136.17,136.13,7.3458]
[1718865830871,7.26,136.17,136.13,7.3455]
[1718865831995,7.26,136.17,136.09,16.3595]
[1718865832165,7.26,136.15,136.11,7.3466]
[1718865832368,7.26,136.14,136.11,7.3466]
[1718865832989,7.26,136.14,136.1,7.3473]
[1718865833367,7.26,136.14,136.11,7.3469]
[1718865834590,7.26,136.13,136.1,7.3474]
[1718865835266,7.3444,136.16,136.09,0.17]
[1718865835488,7.26,136.14,136.11,7.3467]
[1718865837667,7.3449,136.15,136.08,18.3713]
[1718865837866,7.26,136.14,136.09,7.43]
[1718865838266,7.26,136.14,136.11,7.3467]
[1718865839574,7.26,136.14,136.1,7.3473]
[1718865839774,7.26,136.13,136.1,7.3473]
[1718865840395,7.26,136.13,136.11,7.3468]
[1718865840578,7.26,136.13,136.05,39.8224]
[1718865840783,7.26,136.11,136.08,7.3482]
[1718865840975,7.26,136.11,136.09,7.3479]
[1718865841181,7.26,136.11,136.05,39.8224]
[1718865841182,7.26,136.11,136.08,7.3483]
[1718865841390,7.26,136.11,136.09,7.3479]
[1718865842095,7.26,136.11,136.05,39.8224]
[1718865842308,7.26,136.11,136.08,7.3485]
[1718865842677,7.3472,136.11,136.03,18.3782]
[1718865842883,7.26,136.1,136.07,7.349]
[1718865843191,23.8257,136.12,136.07,7.349]
[1718865843395,7.26,136.1,136.07,7.349]
[1718865844984,7.26,136.1,136.04,0.17]
[1718865845300,7.26,136.09,136.06,7.3492]
[1718865847097,7.3486,136.08,136.04,7.3504]
[1718865847277,14.6097,136.06,136.01,7.3522]
[1718865847689,7.26,136.06,136.02,7.3517]
[1718865848502,7.26,136.06,136.03,7.3509]
[1718865848675,7.26,136.07,136.03,7.3509]
[1718865848881,14.6094,136.07,136.02,14.6117]
[1718865849502,7.26,136.06,136.02,7.3517]
[1718865849878,7.26,136.06,136.03,7.3511]
[1718865850085,14.6092,136.07,136.03,7.3511]
[1718865850300,6.0647,136.09,136.02,0.17]
[1718865850495,6.0647,136.09,136.05,7.3501]
[1718865850689,13.3247,136.09,136.05,7.3501]
[1718865850882,6.0647,136.09,136.06,7.3495]
[1718865851102,30.3422,136.12,136.06,7.26]
[1718865851282,37.6022,136.12,136.07,7.26]
[1718865851481,37.6022,136.12,136.07,14.6088]
[1718865851683,37.6022,136.12,136.07,7.26]
[1718865851684,7.347,136.11,136.07,7.26]
[1718865851909,30.2556,136.12,136.08,7.3485]
[1718865852080,22.9956,136.12,136.09,7.348]
[1718865852286,22.9956,136.12,136.08,7.3485]
[1718865852486,7.3453,136.14,136.09,7.3477]
[1718865852805,14.6053,136.14,136.1,7.3474]
[1718865853194,14.6053,136.14,136.09,14.6078]
[1718865853606,7.3459,136.13,136.09,14.6078]
[1718865853800,7.3464,136.12,136.07,14.609]
[1718865853995,14.6064,136.12,136.07,7.349]
[1718865854193,7.26,136.11,136.07,7.349]
[1718865854906,7.26,136.11,136.06,7.26]
[1718865855090,7.26,136.11,136.06,7.3496]
[1718865855091,7.26,136.1,136.06,7.3496]
[1718865855797,7.26,136.1,136.07,7.349]
[1718865855991,7.26,136.11,136.07,7.349]
[1718865856205,7.26,136.11,136.08,7.3485]
[1718865856387,7.26,136.12,136.08,7.3485]
[1718865857203,14.6065,136.12,136.07,14.6089]
[1718865857397,14.6065,136.12,136.08,7.3485]
[1718865857914,14.6065,136.12,136.07,7.26]
[1718865857915,7.3454,136.14,136.09,7.26]
[1718865858114,7.3459,136.13,136.09,14.6077]
[1718865858305,14.6059,136.13,136.08,7.3483]
[1718865858793,7.26,136.12,136.08,7.3483]
[1718865860014,14.6064,136.12,136.07,7.3489]
[1718865860218,14.6064,136.12,136.03,0.17]
[1718865860398,7.26,136.11,136.06,7.26]
[1718865860912,7.26,136.11,136.08,7.3484]
[1718865861415,34.3035,136.15,136.05,7.26]
[1718865861610,7.26,136.11,136.06,7.43]
[1718865861816,7.26,136.12,136.06,7.26]
[1718865862113,15.9414,136.15,136.1,7.3471]
[1718865862295,7.26,136.13,136.1,7.3471]
[1718865863020,7.26,136.13,136.09,7.3479]
[1718865863617,14.6059,136.13,136.09,7.3479]
[1718865864420,7.26,136.13,136.1,7.3473]
[1718865865313,7.3453,136.14,136.09,7.3479]
[1718865865497,7.3465,136.12,136.08,14.6085]
[1718865865698,7.26,136.12,136.08,7.3485]
[1718865866016,7.26,136.12,136.06,25.6341]
[1718865866323,7.26,136.12,136.08,7.3483]
[1718865866495,7.26,136.12,136.09,7.348]
[1718865867013,7.26,136.12,136.08,7.3483]
[1718865867608,7.3461,136.13,136.08,7.3483]
[1718865867807,7.26,136.12,136.08,7.3483]
[1718865868102,7.26,136.13,136.09,7.3479]
[1718865868508,7.26,136.13,136.1,7.3473]
[1718865869017,7.26,136.13,136.09,7.348]
[1718865869218,7.26,136.13,136.1,7.3474]
[1718865869421,7.26,136.13,136.09,7.3478]
[1718865869998,14.6053,136.14,136.09,7.3478]
[1718865871223,7.26,136.13,136.09,7.3478]
[1718865871421,15.9414,136.15,136.1,7.26]
[1718865871604,23.2014,136.15,136.09,7.26]
[1718865872215,30.5462,136.15,136.11,7.3468]
[1718865872412,30.5462,136.15,136.09,7.26]
[1718865873127,30.5462,136.15,136.1,7.3474]
[1718865873326,7.26,136.14,136.1,7.3474]
[1718865874021,23.2862,136.15,136.1,7.3474]
[1718865874349,7.26,136.14,136.1,7.3474]
[1718865874518,7.3454,136.14,136.1,7.3474]
[1718865874718,14.6054,136.14,136.1,7.3474]
[1718865875023,7.26,136.14,136.1,7.3474]
[1718865875727,15.9414,136.15,136.13,7.3459]
[1718865875917,23.2014,136.15,136.09,7.26]
[1718865877025,30.5463,136.15,136.1,7.3472]
[1718865877604,30.5463,136.15,136.09,7.26]
[1718865877832,15.9414,136.15,136.11,7.3469]
[1718865878027,7.26,136.14,136.1,7.3473]
[1718865878231,15.9414,136.15,136.11,7.3468]
[1718865878432,7.26,136.14,136.11,7.3468]
[1718865878730,14.6055,136.14,136.1,7.3473]
[1718865879320,7.26,136.14,136.1,7.3473]
[1718865880227,14.6053,136.14,136.1,7.3473]
[1718865880406,7.26,136.14,136.1,7.3473]
[1718865882836,15.9414,136.15,136.11,7.3466]
[1718865883039,30.5462,136.15,136.09,7.43]
[1718865883342,7.26,136.14,136.02,21.31139394]
[1718865883640,14.6062,136.13,136.08,7.3483]
[1718865885039,14.6062,136.13,136.09,7.3479]
[1718865885427,7.26,136.13,136.09,7.3479]
[1718865885815,7.3454,136.14,136.09,7.3478]
[1718865886017,14.606,136.13,136.09,7.3478]
[1718865886241,14.6065,136.12,136.08,7.3484]
[1718865886417,7.26,136.11,136.08,7.3484]
[1718865888140,7.26,136.11,136.09,7.348]
[1718865888635,7.26,136.12,136.09,7.348]
[1718865889932,15.9414,136.15,136.06,0.17]
[1718865890151,15.9414,136.15,136.13,7.3456]
[1718865890315,15.9414,136.15,136.08,0.17]
[1718865890644,15.9414,136.15,136.12,7.346]
[1718865891435,23.2014,136.15,136.12,7.346]
[1718865891735,23.2014,136.15,136.11,7.3468]
[1718865893232,14.6057,136.14,136.09,7.3476]
[1718865893438,7.26,136.13,136.09,7.3476]
[1718865894254,14.6059,136.13,136.09,7.3476]
[1718865894443,7.26,136.12,136.09,7.3476]
[1718865894621,7.26,136.12,136.04,16.4413]
[1718865894819,7.3466,136.12,136.04,16.4413]
[1718865895039,7.26,136.09,136.06,7.3494]
[1718865895236,18.3636,136.14,135.99,6.0639]
[1718865895237,7.3465,136.12,136.07,7.349]
[1718865895441,7.26,136.1,136.07,7.3489]
[1718865896252,7.26,136.1,136.08,7.3486]
[1718865896453,7.26,136.1,136.07,7.3489]
[1718865896749,7.26,136.1,136.08,7.3485]
[1718865897238,7.26,136.11,136.06,7.26]
[1718865898233,7.3476,136.1,136.04,0.17]
[1718865898424,14.6076,136.1,136.05,7.26]
[1718865898623,14.6076,136.1,136.04,0.34]
[1718865898825,7.3472,136.11,136.04,0.34]
[1718865899127,7.26,136.1,136.04,9.06818387]
[1718865899342,7.26,136.1,136.05,7.26]
[1718865899952,7.3466,136.12,136.07,7.3491]
[1718865900131,14.6075,136.1,136.06,7.3495]
[1718865900833,7.26,136.1,136.06,7.3495]
[1718865901847,7.26,136.1,136.07,7.349]
[1718865902438,7.26,136.1,136.06,7.3496]
[1718865902638,7.26,136.09,136.06,7.3496]
[1718865902840,15.4275,136.1,136.06,7.3496]
[1718865903149,7.26,136.09,136.08,7.3486]
[1718865903333,13.436,136.11,136.08,7.3486]
[1718865903536,6.176,136.11,136.08,7.3486]
[1718865903924,6.176,136.11,136.07,7.3489]
[1718865904135,13.436,136.11,136.07,7.3489]
[1718865904346,6.176,136.11,136.08,7.3484]
[1718865904542,13.436,136.11,136.08,7.3484]
[1718865904739,15.8029,136.13,136.06,0.17]
[1718865905048,18.358,136.19,136.06,0.17]
[1718865905049,6.6384,136.19,136.12,0.17]
[1718865905347,6.6384,136.23,136.12,16.3499]
[1718865905550,14.6011,136.22,136.17,7.3436]
[1718865905750,6.6384,136.23,136.19,7.3425]
[1718865905751,13.8984,136.23,136.19,7.3425]
[1718865905950,6.6384,136.23,136.17,7.3434]
[1718865906251,7.26,136.21,136.17,7.3435]
[1718865906434,7.26,136.2,136.16,7.3441]
[1718865906940,7.3428,136.19,136.14,7.345]
[1718865907246,7.26,136.18,136.14,7.345]
[1718865907446,7.26,136.22,136.13,7.43]
[1718865907645,7.3422,136.2,136.15,7.3446]
[1718865907955,7.26,136.18,136.15,7.3446]
[1718865909442,7.3421,136.2,136.15,7.3446]
[1718865909828,7.3418,136.21,136.15,7.3446]
[1718865910245,7.3423,136.2,136.15,7.3446]
[1718865910641,7.3432,136.19,136.13,7.5156]
[1718865910846,0.17,136.21,136.11,7.3467]
[1718865911056,7.3443,136.16,136.11,7.3467]
[1718865911235,7.3439,136.17,136.12,7.3463]
[1718865911435,7.3433,136.18,136.13,7.3458]
[1718865912256,15.693,136.17,136.07,6.1482]
[1718865912441,7.3467,136.12,136.07,7.3488]
[1718865913537,100.0,136.14,136.03,15.7896]
[1718865913538,7.3482,136.09,136.03,15.7896]
[1718865913837,7.3477,136.1,136.05,7.3498]
[1718865914038,18.3621,136.15,136.0,22.8063]
[1718865914238,7.3462,136.13,136.08,7.3485]
[1718865915760,7.3455,136.14,136.09,7.3479]
[1718865917564,7.3459,136.13,136.09,7.3479]
[1718865917737,61.952,136.17,136.1,7.3474]
[1718865917943,21.8026,136.17,136.11,7.3469]
[1718865918142,7.3444,136.16,136.12,7.3464]
[1718865918342,21.8026,136.17,136.12,7.3464]
[1718865918343,29.1464,136.17,136.12,7.3464]
[1718865918959,7.3443,136.16,136.11,7.3467]
[1718865919157,29.1464,136.17,136.12,7.3462]
[1718865919382,21.8026,136.17,136.1,0.17]
[1718865919569,7.345,136.15,136.1,7.5174]
[1718865919751,7.3445,136.16,136.1,0.17]
[1718865919949,7.3445,136.16,136.1,0.51]
[1718865920149,7.3445,136.16,136.11,0.17]
[1718865920362,7.3445,136.16,136.11,7.5167]
[1718865920562,29.1465,136.17,136.12,7.3463]
[1718865920747,7.3443,136.16,136.11,7.5168]
[1718865921374,21.8026,136.17,136.1,0.17]
[1718865921667,7.3444,136.16,136.11,7.3469]
[1718865922559,7.3434,136.18,136.14,7.3453]
[1718865922756,14.94009808,136.21,136.16,7.3443]
[1718865922960,14.94009808,136.21,136.13,0.17]
[1718865922961,7.3418,136.21,136.13,0.17]
[1718865923161,39.869,136.23,136.17,7.3437]
[1718865923162,21.5166,136.23,136.17,7.3437]
[1718865923568,7.3412,136.22,136.17,7.3437]
[1718865923877,7.3411,136.22,136.16,0.17]
[1718865924048,28.8572,136.23,136.18,7.3428]
[1718865924654,7.3406,136.23,136.18,7.3428]
[1718865924858,7.34,136.24,136.19,7.3426]
[1718865925276,7.3396,136.25,136.2,7.342]
[1718865925568,7.3406,136.23,136.18,7.343]
[1718865926355,7.341,136.22,136.16,0.17]
[1718865926563,7.3407,136.23,136.18,7.3431]
[1718865926905,7.3407,136.23,136.16,0.17]
[1718865927074,7.3407,136.23,136.18,7.3429]
[1718865927690,7.3426,136.2,136.15,7.3443]
[1718865927858,7.3432,136.18,136.14,7.3452]
[1718865928187,7.3428,136.19,136.14,7.3452]
[1718865928479,7.3428,136.19,136.15,7.3447]
[1718865928655,21.79,136.23,136.13,15.2783]
[1718865928859,36.6941,136.27,136.13,15.2783]
[1718865928860,52.29925441,136.26,136.19,7.3425]
[1718865929057,7.3395,136.25,136.2,7.342]
[1718865929280,7.34,136.24,136.2,7.342]
[1718865930261,7.34,136.24,136.19,7.3425]
[1718865930871,0.37280353,136.27,136.2,1.30844677]
[1718865931071,0.37280353,136.27,136.26,7.3389]
[1718865931268,20.00772868,136.33,136.26,7.3387]
[1718865931583,6.4477,136.33,136.25,7.3392]
[1718865931952,6.6474,136.36,136.26,0.17]
[1718865932188,7.3347,136.34,136.29,7.3372]
[1718865932355,6.6474,136.36,136.27,7.3381]
[1718865932356,7.3357,136.32,136.27,7.3381]
[1718865932756,6.6474,136.36,136.28,7.3376]
[1718865932979,7.3349,136.34,136.28,7.3376]
[1718865933153,6.6474,136.36,136.25,0.17]
[1718865933354,6.6474,136.36,136.25,0.34]
[1718865933558,6.6474,136.36,136.3,7.3363]
[1718865933771,6.6474,136.36,136.31,7.3361]
[1718865933977,6.6474,136.36,136.3,7.3367]
[1718865934162,7.3344,136.35,136.29,7.3371]
[1718865934361,7.3346,136.34,136.29,7.3371]
[1718865934570,13.9814,136.36,136.3,7.3366]
[1718865935280,7.334,136.35,136.27,0.17]
[1718865935473,7.334,136.35,136.27,0.34]
[1718865935674,13.9811,136.36,136.3,7.3363]
[1718865936876,6.6474,136.36,136.31,7.3356]
[1718865937095,31.64430377,136.39,136.28,16.4806]
[1718865937386,7.3334,136.37,136.32,7.3352]
[1718865937583,7.3326,136.38,136.32,7.3352]
[1718865938593,7.332,136.39,136.34,7.334]
[1718865939182,7.3325,136.38,136.33,7.335]
[1718865939463,7.3325,136.38,136.32,0.17]
[1718865939464,6.1231,136.4,136.34,7.5044]
[1718865939666,7.3322,136.39,136.34,7.3344]
[1718865939866,7.3322,136.39,136.33,7.3349]
[1718865940783,7.3315,136.4,136.32,0.17]
[1718865941094,7.335,136.44,136.32,0.17]
[1718865941095,7.331,136.41,136.36,7.3335]
[1718865941281,7.3314,136.4,136.35,7.3338]
[1718865941968,7.332,136.39,136.34,7.3345]
[1718865942162,24.22032949,136.44,136.34,7.3345]
[1718865942359,7.3316,136.4,136.34,7.3345]
[1718865942559,7.3316,136.4,136.32,0.51]
[1718865942560,7.3316,136.4,136.35,7.334]
[1718865944681,118.3258,136.42,136.33,7.3346]
[1718865944988,0.51,136.41,136.33,7.3346]
[1718865945170,7.3325,136.38,136.33,7.3346]
[1718865945370,7.3321,136.39,136.34,7.3345]
[1718865946085,7.3324,136.38,136.33,7.3349]
[1718865947784,7.3321,136.39,136.34,7.3345]
[1718865948772,7.3315,136.4,136.35,7.3339]
[1718865949422,7.3319,136.39,136.34,7.3343]
[1718865950876,7.3326,136.38,136.33,7.335]
[1718865952091,7.3321,136.39,136.34,7.3344]
[1718865952790,7.3314,136.4,136.35,7.3339]
[1718865954400,7.3319,136.39,136.35,7.3339]
[1718865954987,7.3319,136.39,136.34,7.3344]
[1718865955481,18.3284,136.4,136.31,6.6167]
[1718865955693,18.3284,136.4,136.3,0.17]
[1718865955694,7.3345,136.35,136.3,7.3364]
[1718865955889,6.9183,136.39,136.29,7.3371]
[1718865955890,0.17,136.37,136.29,7.3371]
[1718865956205,7.3347,136.34,136.29,7.337]
[1718865956491,7.3343,136.35,136.3,7.3366]
[1718865957070,0.17,136.37,136.31,7.3361]
[1718865957282,7.3335,136.36,136.31,7.3359]
[1718865957776,7.334,136.35,136.31,7.3359]
[1718865957977,7.3337,136.36,136.31,7.3359]
[1718865958686,7.3341,136.35,136.3,7.3365]
[1718865959087,7.3337,136.36,136.31,7.336]
[1718865960081,7.3349,136.34,136.29,7.3371]
[1718865960285,18.5029,136.37,136.3,7.3367]
[1718865960492,7.3343,136.35,136.3,7.3367]
[1718865960690,7.3346,136.34,136.3,7.3367]
[1718865961094,7.3342,136.35,136.3,7.3367]
[1718865962090,7.3336,136.36,136.28,22.493]
[1718865962996,7.3341,136.35,136.3,7.3365]
[1718865963302,7.3337,136.36,136.31,7.3361]
[1718865963509,7.5031,136.37,136.32,7.3352]
[1718865964604,7.3335,136.36,136.32,7.3352]
[1718865964789,7.5031,136.37,136.32,7.3352]
[1718865964989,7.3331,136.37,136.32,7.3352]
[1718865965502,7.332,136.39,136.34,7.3342]
[1718865965719,7.3317,136.4,136.35,7.3339]
[1718865965884,76.19629453,136.43,136.29,0.17]
[1718865966208,7.3313,136.4,136.35,7.3336]
[1718865966615,7.3319,136.39,136.34,7.3343]
[1718865966791,0.17,136.42,136.29,22.42]
[1718865966985,0.68,136.42,136.35,7.3338]
[1718865967191,7.3319,136.39,136.34,7.3343]
[1718865968685,7.3308,136.41,136.36,7.3332]
[1718865968891,0.17,136.4,136.36,7.3332]
[1718865969582,0.17,136.4,136.35,7.3339]
[1718865969583,7.3319,136.39,136.35,7.3339]
[1718865969783,7.3319,136.39,136.34,7.3343]
[1718865970196,7.5016,136.4,136.36,7.3334]
[1718865970413,7.3316,136.4,136.35,7.3338]
[1718865970782,7.331,136.41,136.36,7.3335]
[1718865973606,7.3324,136.39,136.34,23.089]
[1718865974095,18.8369,136.42,136.34,7.334]
[1718865974306,7.3322,136.39,136.34,7.334]
[1718865974504,0.17,136.41,136.31,0.17]
[1718865974702,7.3318,136.4,136.35,7.3337]
[1718865975002,7.3314,136.4,136.35,7.3338]
[1718865975305,7.3321,136.39,136.34,7.3344]
[1718865976209,7.3315,136.4,136.35,7.3339]
[1718865976409,18.3303,136.39,136.3,15.755]
[1718865976593,7.3341,136.35,136.3,15.755]
[1718865976788,7.3344,136.35,136.27,15.0193]
[1718865977100,7.3349,136.34,136.29,7.337]
[1718865977303,0.51,136.36,136.29,7.337]
[1718865977508,0.51,136.36,136.3,7.3366]
[1718865977694,7.3343,136.35,136.3,7.3366]
[1718865979017,7.3335,136.36,136.27,15.0193]
[1718865979191,7.3335,136.36,136.31,7.3361]
[1718865979393,7.61271403,136.39,136.27,15.0193]
[1718865979718,29.5243,136.41,136.36,7.3332]
[1718865980009,7.3314,136.4,136.36,7.3332]
[1718865980226,7.3314,136.4,136.35,7.3338]
[1718865980926,7.3314,136.4,136.36,7.3335]
[1718865981328,29.5241,136.41,136.36,7.3335]
[1718865981611,0.34,136.4,136.29,6.5609]
[1718865981805,7.3334,136.37,136.32,7.3352]
[1718865982708,7.3326,136.38,136.33,7.335]
[1718865982908,7.5021,136.39,136.34,7.3344]
[1718865983216,0.17,136.38,136.34,7.3344]
[1718865983420,7.5024,136.38,136.34,7.3344]
[1718865984220,0.17,136.4,136.3,0.17]
[1718865984519,0.51,136.4,136.3,0.17]
[1718865984814,7.3342,136.35,136.3,7.3364]
[1718865985019,7.3347,136.34,136.29,23.5955]
[1718865986013,0.17,136.33,136.25,15.6974]
[1718865986213,7.3369,136.3,136.25,7.3391]
[1718865986398,7.3363,136.31,136.22,22.1343]
[1718865986597,7.3363,136.31,136.26,7.3386]
[1718865987207,0.17,136.32,136.25,7.3392]
[1718865987411,7.3373,136.29,136.24,7.3397]
[1718865987717,0.34,136.32,136.23,7.3403]
[1718865987718,7.3378,136.28,136.23,7.3403]
[1718865988411,0.17,136.29,136.19,21.4507]
[1718865988616,7.3397,136.25,136.2,7.3417]
[1718865989121,7.339,136.26,136.21,7.3414]
[1718865989428,7.3384,136.27,136.22,7.3409]
[1718865990021,6.1575,136.28,136.19,21.4507]
[1718865990209,0.51,136.27,136.19,21.4507]
[1718865991027,6.1575,136.28,136.19,21.4507]
[1718865991227,7.3388,136.27,136.22,7.3407]
[1718865992406,7.3389,136.26,136.21,7.3413]
[1718865992808,24.5033,136.28,136.19,21.4507]
[1718865993019,7.3401,136.24,136.19,22.7789]
[1718865993321,18.3477,136.26,136.18,7.3428]
[1718865993619,7.342,136.21,136.16,7.344]
[1718865993824,21.91,136.24,136.16,7.344]
[1718865994027,0.51,136.23,136.16,7.344]
[1718865994197,7.3417,136.21,136.16,7.344]
[1718865994598,7.3414,136.22,136.15,15.9705]
[1718865994817,7.3414,136.22,136.17,7.3435]
[1718865995320,7.3414,136.22,136.15,15.9705]
[1718865995522,7.3414,136.22,136.18,7.3431]
[1718865995912,7.34,136.24,136.19,7.3422]
[1718865996517,0.17,136.27,136.15,15.9705]
[1718865996802,7.3396,136.25,136.2,7.342]
[1718865997116,7.3395,136.25,136.2,7.3419]
[1718865998221,7.3391,136.26,136.21,7.3414]
[1718866000813,7.3391,136.26,136.22,7.341]
[1718866001126,7.3385,136.27,136.22,7.341]
[1718866001510,7.5078,136.28,136.23,7.3404]
[1718866001704,7.3383,136.27,136.22,7.3409]
[1718866002128,7.3394,136.25,136.21,7.3415]
[1718866002328,7.3392,136.26,136.21,7.3415]
[1718866005025,7.3385,136.27,136.22,7.341]
[1718866005404,7.5079,136.28,136.23,7.3401]
[1718866006009,29.26069167,136.32,136.25,7.3394]
[1718866006308,7.3371,136.3,136.25,7.3394]
[1718866006916,7.3373,136.29,136.24,7.3398]
[1718866007108,35.05479977,136.32,136.22,16.6572]
[1718866007313,18.3447,136.28,136.19,22.5974]
[1718866007514,7.34,136.24,136.19,22.5974]
[1718866007729,0.17,136.27,136.19,22.5974]
[1718866007730,7.3394,136.25,136.21,7.3414]
[1718866007934,0.17,136.27,136.19,22.5974]
[1718866008124,0.17,136.27,136.21,7.3415]
[1718866008743,7.3394,136.26,136.21,7.3415]
[1718866010131,18.3447,136.28,136.19,22.5974]
[1718866010334,7.34,136.24,136.19,22.5974]
[1718866010526,18.3447,136.28,136.2,7.3421]
[1718866010527,7.3396,136.25,136.2,7.3421]
[1718866010838,0.51,136.29,136.19,22.5974]
[1718866011133,7.3374,136.29,136.25,7.3393]
[1718866011320,0.17,136.31,136.2,0.51]
[1718866011517,7.3377,136.29,136.24,7.3399]
[1718866011738,7.3378,136.28,136.23,7.3403]
[1718866012351,35.05479977,136.32,136.21,0.17]
[1718866012561,7.3373,136.29,136.24,7.3397]
[1718866012838,7.3369,136.3,136.21,0.17]
[1718866013216,7.3369,136.3,136.25,7.3392]
[1718866013416,7.3373,136.29,136.24,7.3397]
[1718866013836,7.3369,136.3,136.25,7.3393]
[1718866014032,29.26069167,136.32,136.24,7.3397]
[1718866014033,7.3374,136.29,136.24,7.3397]
[1718866016437,7.3374,136.29,136.25,7.3393]
[1718866018347,7.338,136.28,136.21,0.17]
[1718866018540,0.17,136.3,136.2,20.51]
[1718866018730,0.68,136.3,136.2,0.51]
[1718866019121,119.0232,136.3,136.19,22.5974]
[1718866019347,7.3394,136.25,136.19,22.5974]
[1718866019650,7.3394,136.25,136.2,7.3418]
[1718866019821,18.345,136.28,136.2,7.3418]
[1718866020030,7.3396,136.25,136.2,7.3418]
[1718866020629,7.34,136.24,136.2,7.3418]
[1718866020834,7.3395,136.25,136.2,7.3418]
[1718866021044,18.517,136.27,136.16,21.6596]